[Event "121st Swiss Championship 2022"]
[Site "Samnaun-Compatsch"]
[Date "2022.07.04"]
[Round "1.6"]
[White "Dijkstra, Hidde"]
[Black "Fecker, Noah"]
[Result "0-1"]
[ECO "B40"]
[WhiteElo "2004"]
[BlackElo "2387"]
[Annotator "TA"]
[PlyCount "98"]
[EventDate "2022.06.28"]
[EventType "swiss"]
[EventCountry "SUI"]
[SourceTitle "playchess.com"]
[Source "ChessBase"]
[SourceQuality "1"]
[TimeControl "40/5400+30:1800+30"]

{[%evp 9,98,14,11,-7,0,0,0,13,7,0,-10,-37,0,-8,7,-24,-20,-54,-24,-37,0,-58,12,7,0,0,5,0,0,-14,-8,-79,-68,-80,-90,-155,-164,-176,-175,-150,-156,-202,-121,-129,-132,-287,-260,-423,-430,-384,-310,-268,-112,-105,-83,-83,-83,-83,-84,-84,-84,-207,-162,-461,-438,-446,-330,-322,-303,-335,-319,-294,-294,-918,-902,-1783,-606,-5518,-5381,-5304,-5406,-5343,-5312,-5097,-4133,-5193,-5089,-4721,-4747,-1606,-1400]} 1. e4 {[%emt 0:00:03]} c5 {[%emt 0:00:14]} 2. Nf3 {[%emt 0:00:07]} e6 {[%emt 0:00:26]} 3. g3 {[%emt 0:00:06]} Nc6 {[%emt 0:00:17]} 4. Bg2 {[%emt 0:00:08]} Nf6 {[%emt 0:00:21]} 5. Qe2 {[%emt 0:01:00]} e5 {[%emt 0:00:11]} 6. c3 {[%emt 0:01:34] B40: Sicilian: 2...e6, Unusual lines.} Be7 {[%emt 0:00:25]} 7. O-O {[%emt 0:00:14][%cal Od2d4]} O-O {[%emt 0:00:22]} 8. Na3 {[%emt 0:02:30] The position is equal. 8.Na3 scores better than 8.Rd1.} Re8 {[%emt 0:02:36]} 9. Nc2 {[%emt 0:04:46]} Bf8 {[%emt 0:01:54]} 10. d3 {[%emt 0:00:31]} h6 {[%emt 0:05:08] Inhibits Bg5.} 11. Ne3 {[%emt 0:12:42]} d6 {[%emt 0:04:21][%cal Bd7d6,Bd6d5][%mdl 32]} 12. h3 {[%emt 0:03:17]} Be6 {[%emt 0:03:09] [#]} 13. Nf5 $146 {[%emt 0:03:09]} ({Predecessor:} 13. Nh2 d5 14. Nhg4 Nxg4 15. hxg4 d4 16. Nd5 dxc3 17. bxc3 Ne7 18. c4 Nc6 19. Be3 {1-0 (59) Andriasian,Z (2621)-Karavade,E (2415) Abu Dhabi 2016}) 13... Bxf5 {[%emt 0:08:49]} (13... d5 {seems wilder.} 14. g4 d4 15. cxd4 cxd4 16. g5 hxg5 17. Nxg5 Bd7) 14. exf5 {[%emt 0:00:08]} d5 {[%emt 0:01:55]} 15. Qc2 {[%emt 0:02:42]} (15. Nh2 $11) 15... Bd6 {[%emt 0:06:04]} (15... Qd7 $15) 16. Nh2 $1 $11 {[%emt 0:05:20]} Qd7 {[%emt 0:02:52]} 17. Ng4 {[%emt 0:01:34]} Be7 {[%emt 0:06:56]} 18. Nxf6+ {[%emt 0:05:57]} Bxf6 {[%emt 0:00:05]} 19. g4 {[%emt 0:00:07]} Rad8 {[%emt 0:02:53]} 20. f4 {[%emt 0:01:03]} (20. Rb1 $11 {keeps the balance.}) 20... Bh4 $17 {[%emt 0:04:51]} 21. fxe5 {[%emt 0:15:48]} Nxe5 {[%emt 0:00:24][%cal Bc6e5,Be5g6,Bg6f4][%mdl 32]} 22. f6 {[%emt 0:01:50] [#]} ({White should play} 22. Bf4) 22... g5 $1 {[%emt 0:06:18]} ({Not} 22... Bxf6 23. Bxh6 Ng6 24. Bd2 $11) 23. Bd2 {[%emt 0:02:51]} Ng6 {[%emt 0:02:22] Strongly threatening ...Re2.} 24. d4 {[%emt 0:05:29]} c4 {[%emt 0:06:50] Hoping for ...Re2.} 25. Be1 {[%emt 0:01:31]} (25. Qd1 $17) 25... Bxe1 {[%emt 0:05:46]} ({Better is} 25... Re6 $19 26. Bxh4 Nxh4) 26. Raxe1 {[%emt 0:00:11]} Nf4 {[%emt 0:00:14]} 27. Rxe8+ $2 {[%emt 0:02:19]} (27. Qf5 $17 {is a better defense.} Qxf5 28. gxf5) 27... Rxe8 $19 {[%emt 0:00:24]} 28. Rxf4 $2 {[%emt 0:01:28]} (28. Bf3 {keeps fighting.}) 28... gxf4 $17 {[%emt 0:00:19][%mdl 4096] Endgame KQR-KQB} 29. Qf2 {[%emt 0:00:08]} Qe6 {[%emt 0:05:56]} 30. Qxf4 {[%emt 0:00:24]} Qe3+ {[%emt 0:00:12]} (30... Qe1+ $19 {and Black stays clearly on top.} 31. Kh2 Qh4) 31. Qxe3 {[%emt 0:00:05]} Rxe3 {[%emt 0:00:01] KR-KB} 32. Kf2 {[%emt 0:01:36] Prevents Re2+.} Re6 {[%emt 0:00:50]} 33. Bxd5 {[%emt 0:00:09]} Rxf6+ {[%emt 0:00:02]} 34. Ke3 {[%emt 0:00:23]} b5 {[%emt 0:00:54]} 35. b3 {[%emt 0:04:14]} (35. a3 $17 {might work better.}) 35... cxb3 $19 {[%emt 0:01:35]} 36. axb3 {[%emt 0:00:06] [#]} (36. Bxb3 Rf1 37. a4) 36... a5 $1 {[%emt 0:00:49]} 37. c4 {[%emt 0:00:58]} bxc4 {[%emt 0:02:03]} 38. Bxc4 {[%emt 0:01:47]} Kf8 {[%emt 0:02:41]} 39. h4 {[%emt 0:01:36]} Ke7 {[%emt 0:01:18]} 40. Ke4 {[%emt 0:08:42]} Rf2 {[%emt 0:00:52]} 41. Ke3 $2 {[%emt 0:33:51]} (41. h5) 41... Rh2 {[%emt 0:32:17] Black is clearly winning.} 42. h5 {[%emt 0:01:34]} f5 {[%emt 0:02:59]} 43. gxf5 {[%emt 0:01:04]} Rxh5 {[%emt 0:00:43]} 44. Be6 {[%emt 0:00:05]} Kd6 {[%emt 0:03:57]} 45. Kf3 {[%emt 0:00:41]} Rh4 {[%emt 0:01:02]} 46. Ke3 {[%emt 0:00:20]} h5 {[%emt 0:02:04]} 47. Bc4 {[%emt 0:01:30]} Ke7 {[%emt 0:01:06]} 48. Be6 {[%emt 0:00:13]} Kf6 {[%emt 0:00:00]} 49. Kd3 {[%emt 0:00:00]} Rf4 {[%emt 0:00:00] Weighted Error Value: White=0.68/Black=0.14 (very precise)} 0-1

[Event "121st Swiss Championship 2022"]
[Site "Samnaun-Compatsch"]
[Date "2022.07.04"]
[Round "1.7"]
[White "Hakimifard, Ghazal"]
[Black "Zargarov, Mikayel"]
[Result "1-0"]
[ECO "B31"]
[WhiteElo "2296"]
[BlackElo "1994"]
[Annotator "TA"]
[PlyCount "59"]
[EventDate "2022.06.28"]
[EventType "swiss"]
[EventCountry "SUI"]
[SourceTitle "playchess.com"]
[Source "ChessBase"]
[SourceQuality "1"]
[TimeControl "40/5400+30:1800+30"]

{[%evp 16,59,25,27,28,26,25,32,33,25,71,35,47,56,113,88,109,100,123,123,204,212,204,137,144,112,113,106,116,110,141,131,227,195,306,275,290,295,450,413,452,473,735,724,1849,1680]} 1. e4 {[%emt 0:00:06]} c5 {[%emt 0:00:11]} 2. Nf3 {[%emt 0:00:04]} Nc6 {[%emt 0:00:08]} 3. Bb5 {[%emt 0:00:10]} g6 {[%emt 0:00:17]} 4. Bxc6 {[%emt 0:00:22]} dxc6 {[%emt 0:00:11]} 5. h3 {[%emt 0:01:39]} Bg7 {[%emt 0:00:46]} 6. d3 {[%emt 0:00:07]} Nf6 {[%emt 0:00:24][%cal Bg8f6,Bf6d7,Bd7f8,Bf8e6,Be6f4][%mdl 32]} 7. Nc3 {[%emt 0:00:10]} Nd7 {[%emt 0:01:49]} 8. Be3 {[%emt 0:03:23]} e5 9. Qd2 {[%emt 0:02:35]} h6 {B31: Sicilian: 2...Nc6 3 Bb5 g6.} 10. O-O {[%emt 0:11:58]} Qe7 11. Nh2 {[%emt 0:13:10]} Nf8 {[%emt 0:05:15] White is slightly better.} 12. a3 {[%emt 0:00:00] [#]} b5 $146 {[%emt 0:27:10]} (12... Ne6 $11 {is superior.}) ({Predecessor:} 12... Ne6 13. Ne2 Nd4 14. Rab1 Be6 15. b4 cxb4 16. axb4 Nxe2+ 17. Qxe2 O-O 18. Bc5 Qd7 19. Bxf8 Bxf8 {0-1 (61) Kassimov,B (2363)-Druska,J (2495) Chess.com INT 2021}) 13. Ne2 {[%emt 0:00:00][%cal Bc3e2,Be2g3,Bg3f5][%mdl 32]} Ne6 {[%emt 0:11:14]} 14. c3 {[%emt 0:08:51]} g5 {[%emt 0:18:11]} ({Black should play} 14... c4 $14) 15. Ng3 $16 {[%emt 0:16:13]} Nf4 {[%emt 0:06:59]} 16. b4 {[%emt 0:05:56]} cxb4 {[%emt 0:07:24]} 17. axb4 {[%emt 0:00:37]} Qd7 {[%emt 0:00:38]} (17... Qd8 $16 {was worth a try.}) 18. Nf5 $18 {[%emt 0:09:20]} O-O 19. d4 {[%emt 0:00:00]} f6 {[%emt 0:08:39]} 20. Bxf4 {[%emt 0:02:31]} exf4 {[%emt 0:00:21]} 21. g4 {[%emt 0:06:15] White is much more active. The black rooks are badly placed.} Qc7 {[%emt 0:02:32]} 22. Rfe1 {[%emt 0:02:32]} Be6 {[%emt 0:01:55]} 23. Nf3 {[%emt 0:00:37]} a5 {[%emt 0:01:55]} (23... Rf7 $16 24. Nxg7 Kxg7) 24. bxa5 {[%emt 0:01:11]} Bxf5 {[%emt 0:02:00]} (24... Rfd8 {was necessary.} 25. e5 Bxf5) 25. Qa2+ {[%emt 0:02:03]} ({Don't take} 25. exf5 Rxa5 26. Rxa5 Qxa5 $18) 25... Kh7 {[%emt 0:01:24] [#] Hoping for ...Bg6.} 26. exf5 {[%emt 0:00:33][%cal Be4f5,Bf5e6][%mdl 32]} Rfe8 {[%emt 0:00:57]} (26... Ra6 $142 27. Re6 Rfa8) 27. Re6 {[%emt 0:01:06]} c5 {[%emt 0:01:28]} 28. Qe2 {[%emt 0:02:39][%csl LRb5,LRe8] White is clearly winning.} Rxe6 {[%emt 0:00:48]} (28... Rec8 $142 29. Re7 Qd6) 29. fxe6 {[%emt 0:00:02] [#] aiming for Qe4+.} ({Inferior is} 29. Qxe6 cxd4 30. Qe4 (30. cxd4 $2 Qc3 $19) 30... Qxc3 31. Qxa8 Qxa1+ 32. Kg2 b4 $14) 29... Bf8 {[%emt 0:01:27]} 30. Qe4+ {[%emt 0:00:06] Weighted Error Value: White=0.12 (very precise) /Black=0.38} 1-0

[Event "121st Swiss Championship 2022"]
[Site "Samnaun-Compatsch"]
[Date "2022.07.04"]
[Round "1.8"]
[White "Binggeli, Christian"]
[Black "Georgescu, Lena"]
[Result "0-1"]
[ECO "A01"]
[WhiteElo "1991"]
[BlackElo "2279"]
[Annotator "TA"]
[PlyCount "37"]
[EventDate "2022.06.28"]
[EventType "swiss"]
[EventCountry "SUI"]
[SourceTitle "playchess.com"]
[Source "ChessBase"]
[SourceQuality "1"]
[TimeControl "40/5400+30:1800+30"]

{[%evp 14,37,0,0,0,-2,3,-89,-79,-102,-88,-66,-11,-115,-81,-69,-68,-464,-441,-614,-614,-765,-696,-1028,-1052,-1150]} 1. b3 {[%emt 0:00:08]} e5 {[%emt 0:02:30]} 2. Bb2 {[%emt 0:00:06]} Nc6 {[%emt 0:00:03]} 3. c4 {[%emt 0:00:05]} Nf6 {[%emt 0:01:03]} 4. e3 {[%emt 0:01:07]} d5 {[%emt 0:01:49]} 5. cxd5 {[%emt 0:00:34]} Nxd5 {[%emt 0:00:09]} 6. a3 {[%emt 0:02:30]} Bd6 {[%emt 0:02:52]} 7. Qc2 {[%emt 0:03:01]} O-O {[%emt 0:01:29]} 8. Nf3 {[%emt 0:06:58]} Qe7 {[%emt 0:02:09] A01: Nimzowitsch-Larsen Opening.} 9. Bd3 {[%emt 0:13:51]} Kh8 {[%emt 0:15:08]} 10. h4 {[%emt 0:11:36] [#]} (10. Nc3 $11 {remains equal.} Nxc3 11. dxc3) 10... f5 $146 {[%emt 0:02:16] Black is better.} ({Predecessor:} 10... Nf6 11. Ng5 h6 12. Nc3 Bd7 13. Bc4 g6 14. Nge4 Nxe4 15. Qxe4 f5 16. Qc2 Be6 {½-½ (77) Waldmann,H (2305)-Giemsa,S (2302) Germany 2016}) 11. Bb5 {[%emt 0:04:59]} ({Wrong is} 11. Nc3 $2 Nxc3 12. Bxc3 e4 $19) 11... Bd7 {[%emt 0:01:00][%cal Oc6b4] Strongly threatening ...Ncb4!} 12. Nc3 {[%emt 0:03:28]} Nb6 {[%emt 0:04:18] Black is more active.} ({Better is} 12... Nf6 $15 13. Bxc6 Bxc6) 13. Na4 {[%emt 0:07:42] [#]} (13. h5 $11) 13... Nb4 $1 {[%emt 0:06:23][%mdl 512]} 14. axb4 {[%emt 0:02:41]} Bxb5 {[%emt 0:00:06]} 15. Nc5 $2 {[%emt 0:02:06][%mdl 8192] This costs White the game.} ({White has to play} 15. Nc3 $15 Bd7 16. b5) 15... Nd5 $19 {[%emt 0:07:11][%cal Bb6d5,Bd5b4,Bb4d3][%mdl 32] Black is clearly winning.} 16. Nxb7 {[%emt 0:11:26]} Nxb4 {[%emt 0:00:00]} 17. Qc3 {[%emt 0:00:18]} Nd3+ {[%emt 0:00:00]} 18. Kd1 {[%emt 0:00:24]} Bb4 {[%emt 0:00:00] Inhibits Qa5.} 19. Qxe5 {[%emt 0:00:25] Weighted Error Value: White=1.20/Black=0.14 (very precise)} 0-1

[Event "121st Swiss Championship 2022"]
[Site "Samnaun-Compatsch"]
[Date "2022.07.04"]
[Round "1.9"]
[White "Loeffler, Markus"]
[Black "Riedener, Toni"]
[Result "1/2-1/2"]
[ECO "A07"]
[WhiteElo "2278"]
[BlackElo "1983"]
[Annotator "TA"]
[PlyCount "87"]
[EventDate "2022.06.28"]
[EventType "swiss"]
[EventCountry "SUI"]
[SourceTitle "playchess.com"]
[Source "ChessBase"]
[SourceQuality "1"]
[TimeControl "40/5400+30:1800+30"]

{[%evp 9,87,12,16,15,16,27,17,20,20,19,27,10,27,29,32,30,35,35,38,36,36,36,43,38,45,27,27,27,23,2,2,0,78,72,75,77,142,40,43,52,46,46,51,9,16,0,0,0,0,0,0,0,0,0,0,0,5,0,6,6,7,6,13,0,0,0,0,0,0,0,0,0,0,0,13,0,0,0,0,0]} 1. Nf3 {[%emt 0:00:17]} d5 {[%emt 0:00:15]} 2. g3 {[%emt 0:00:07]} Bg4 {[%emt 0:02:24]} 3. Bg2 {[%emt 0:00:09]} Nd7 {[%emt 0:00:53]} 4. h3 {[%emt 0:00:50]} Bh5 {[%emt 0:00:29]} 5. d4 {[%emt 0:00:43]} e6 {[%emt 0:01:58]} 6. O-O {[%emt 0:00:14][%cal Oc2c4] A07: Réti Opening: New York and Capablanca Systems.} Ngf6 {[%emt 0:02:29]} 7. c4 {[%emt 0:00:28]} c6 {[%emt 0:01:16]} 8. cxd5 {[%emt 0:00:29]} cxd5 {[%emt 0:02:50]} 9. Bf4 {[%emt 0:12:13]} Be7 {[%emt 0:04:28]} 10. Qb3 {[%emt 0:03:14]} Qb6 {[%emt 0:01:36]} 11. Qxb6 {[%emt 0:00:42]} Nxb6 {[%emt 0:01:12] [#]} 12. g4 $146 {[%emt 0:06:19]} ({Predecessor:} 12. Nc3 a6 13. g4 Bg6 14. Ne5 Nfd7 15. Nxg6 hxg6 16. e4 Nf6 17. Bc7 Bd8 18. Bxb6 Bxb6 19. exd5 Bxd4 20. dxe6 fxe6 {1-0 (60) Godart,F (2439)-Santos Latasa,J (2591) Belgium 2020}) 12... Bg6 {[%emt 0:00:13]} 13. Rc1 {[%emt 0:00:02]} Rc8 {[%emt 0:05:00]} 14. Rxc8+ {[%emt 0:04:38]} Nxc8 {[%emt 0:00:03]} 15. Nbd2 {[%emt 0:00:37]} O-O {[%emt 0:18:49]} 16. Rc1 {[%emt 0:02:54]} Bd6 {[%emt 0:01:25]} 17. Be5 {[%emt 0:20:01]} Ne4 {[%emt 0:03:51]} 18. Nxe4 {[%emt 0:27:02]} Bxe4 {[%emt 0:20:47]} 19. Bxd6 {[%emt 0:12:15]} Nxd6 {[%emt 0:00:09]} 20. Rc7 {[%emt 0:00:09]} Rb8 {[%emt 0:03:06] [#]} (20... Rc8 $11 {keeps the balance.} 21. Rxc8+ Nxc8) 21. Ne5 $1 $16 {[%emt 0:03:02]} Bxg2 22. Kxg2 {[%emt 0:00:01][%mdl 4096] Endgame Black must now prevent Rd7. KRN-KRN} Nb5 {[%emt 0:16:49] [#]} (22... Rd8 $142) 23. Rxf7 {[%emt 0:00:28] White is more active.} (23. Rd7 $1 $16) 23... Nxd4 $14 {[%emt 0:00:12]} 24. e3 {[%emt 0:00:23]} Nc6 {[%emt 0:00:28]} 25. Nxc6 {[%emt 0:00:57]} bxc6 {[%emt 0:00:02]} 26. Rxa7 {[%emt 0:01:20] b3 is the strong threat.} Rxb2 {[%emt 0:00:12] KR-KR. The position is equal.} 27. Rc7 {[%emt 0:01:25]} Rxa2 {[%emt 0:02:05]} 28. Rxc6 {[%emt 0:00:02]} Kf7 {[%emt 0:00:19]} 29. Rc7+ {[%emt 0:00:12]} Kg6 {[%emt 0:06:16]} 30. Re7 {[%emt 0:00:37]} Kf6 {[%emt 0:00:11]} 31. Rd7 {[%emt 0:00:02]} h6 {[%emt 0:01:00]} 32. h4 {[%emt 0:00:37]} Rd2 {[%emt 0:01:35]} 33. Kf3 {[%emt 0:00:36]} e5 {[%emt 0:01:06]} 34. Rd6+ {[%emt 0:00:50]} Ke7 {[%emt 0:00:14]} 35. Ra6 {[%emt 0:00:08]} d4 {[%emt 0:02:31]} 36. exd4 {[%emt 0:00:32]} Rxd4 {[%emt 0:01:19]} 37. Kg3 {[%emt 0:02:32]} Rd3+ {[%emt 0:00:47]} 38. Kg2 {[%emt 0:00:03]} Rd4 {[%emt 0:00:15]} 39. f3 {[%emt 0:00:24]} Rd2+ {[%emt 0:00:34]} 40. Kg3 {[%emt 0:00:01]} Rd4 {[%emt 0:00:21]} 41. Kf2 {[%emt 0:04:16]} Kf7 {[%emt 0:08:09]} 42. Ke3 {[%emt 0:00:28]} h5 {[%emt 0:04:55]} 43. Ra7+ {[%emt 0:04:18]} Kf6 {[%emt 0:01:32]} 44. Ra6+ {[%emt 0:04:14] Weighted Error Value: White=0.07 (flawless) /Black=0.08 (flawless)} 1/2-1/2

[Event "121st Swiss Championship 2022"]
[Site "Samnaun-Compatsch"]
[Date "2022.07.04"]
[Round "1.10"]
[White "Buerge, Reto"]
[Black "Rohrer, Christophe"]
[Result "0-1"]
[ECO "A45"]
[WhiteElo "1979"]
[BlackElo "2246"]
[Annotator "TA"]
[PlyCount "86"]
[EventDate "2022.06.28"]
[EventType "swiss"]
[EventCountry "SUI"]
[SourceTitle "playchess.com"]
[Source "ChessBase"]
[SourceQuality "1"]
[TimeControl "40/5400+30:1800+30"]

{[%evp 9,86,44,45,-6,8,-8,21,0,-12,-43,-50,-58,-56,-50,-45,-76,-70,-81,-86,-89,-85,-98,-73,-120,-98,-98,-103,-120,-114,-121,-139,-122,-39,-302,-308,-289,-279,-803,-251,-364,-361,-409,-397,-395,-329,-871,-429,-586,-580,-910,-896,-861,-576,-550,-407,-717,-413,-676,-643,-620,-617,-1148,-1144,-1143,-1143,-1043,-1080,-29994,-884,-797,-790,-1231,-1104,-29966,-29965,-29996,-29997,-29997,-29998]} 1. d4 {[%emt 0:00:06]} Nf6 {[%emt 0:00:10]} 2. Bg5 {[%emt 0:00:50]} c5 {[%emt 0:00:15]} 3. Nc3 {[%emt 0:00:58]} Qa5 {[%emt 0:00:19]} 4. Bxf6 {[%emt 0:02:06]} gxf6 {[%emt 0:00:07]} 5. e3 {[%emt 0:02:17]} d5 {[%emt 0:01:52]} 6. Nf3 {[%emt 0:02:39] A45: Trompowsky Attack.} (6. Qf3 $14) 6... Nc6 $11 {[%emt 0:00:47] [#]} 7. Be2 $146 {[%emt 0:01:24]} ({Predecessor:} 7. a3 cxd4 8. Nxd4 e6 9. Be2 Bd7 10. O-O f5 11. Rb1 Rg8 12. Nf3 Rc8 13. g3 {1-0 (40) Gorskov,A-Hentunen,A (2265) Finland 1989}) 7... Rg8 {[%emt 0:10:49]} 8. O-O {[%emt 0:01:35] The position is equal.} Bh3 {[%emt 0:02:13]} 9. Ne1 {[%emt 0:00:40]} cxd4 {[%emt 0:01:07]} 10. exd4 {[%emt 0:00:24]} e6 {[%emt 0:01:05]} 11. Kh1 {[%emt 0:04:54]} Bf5 {[%emt 0:00:26]} 12. a3 {[%emt 0:03:31]} Qb6 {[%emt 0:06:03][%csl LRb2,LRd4]} 13. Bb5 {[%emt 0:07:00]} O-O-O {[%emt 0:06:47]} 14. Bxc6 {[%emt 0:07:58]} Qxc6 {[%emt 0:00:10]} 15. Nd3 {[%emt 0:02:55]} Rg4 {[%emt 0:02:50]} 16. Nb4 {[%emt 0:07:58]} (16. Ne2 $142) 16... Qc4 {[%emt 0:02:16][%csl LRb4,LRd4]} 17. Ne2 {[%emt 0:02:27]} Bd6 {[%emt 0:03:52]} 18. b3 {[%emt 0:07:47]} Qc7 {[%emt 0:01:36] Black is much more active.} 19. Ng3 {[%emt 0:11:18]} Bxg3 {[%emt 0:08:06]} 20. fxg3 {[%emt 0:02:48]} Qc3 {[%emt 0:00:23] Inhibits Qd2.} (20... Kb8 $17 {Hoping for ...a5.} 21. Qd2 h5) 21. Rf4 $2 {[%emt 0:02:46][%mdl 8192] [#] Now White is beyond hope.} ({White should try} 21. Qf3 $1 $15 Qxf3 22. gxf3) 21... Rxf4 $1 $19 {[%emt 0:00:50]} 22. gxf4 {[%emt 0:00:10]} Rg8 {[%emt 0:00:10]} 23. Nd3 $2 {[%emt 0:04:48]} (23. Qe1 Qxd4 24. Qg1) 23... Qxd4 $2 {[%emt 0:00:58]} (23... Be4 24. Ne1 Qe3) 24. Ne1 {[%emt 0:01:04]} (24. Qg1 {only move.} Qc3 25. Qe1) 24... Qxf4 {[%emt 0:01:01][%cal Rf4f1]} 25. Qe2 {[%emt 0:03:46] Inhibits Qf1+.} Qe5 {[%emt 0:00:30]} 26. Qd1 {[%emt 0:01:18]} Qe3 {[%emt 0:03:47] Strongly threatening ...Be4.} 27. c4 $2 {[%emt 0:04:11]} (27. Qf3 Qxf3 28. gxf3) 27... d4 {[%emt 0:01:29]} (27... Qf2 $142 {[%cal Rf2f1]} 28. Qf3 Qb2) 28. Ra2 {[%emt 0:02:09]} e5 {[%emt 0:01:06]} 29. Rd2 {[%emt 0:03:33]} Bg4 {[%emt 0:01:40]} 30. Qc1 {[%emt 0:00:52]} Rg5 {[%emt 0:06:22]} 31. Nc2 {[%emt 0:01:22]} Qe4 {[%emt 0:01:04]} 32. Qg1 {[%emt 0:02:41]} (32. Qe1 $142 Bf3 33. Qxe4 Bxe4 34. Kg1) 32... h5 {[%emt 0:02:19][%cal Bh7h5,Bh5h4,Bh4h3][%mdl 32]} 33. Nxd4 {[%emt 0:03:08]} (33. Qe1 $142 Bf3 34. Qxe4 Bxe4 35. Ne1) 33... exd4 {[%emt 0:00:17]} 34. Rxd4 {[%emt 0:00:15]} Qe2 {[%emt 0:00:41][%cal Og4h3]} 35. Rf4 {[%emt 0:01:35] [#]} Bh3 $1 {[%emt 0:01:45][%mdl 512]} 36. Rf2 {[%emt 0:01:49]} (36. gxh3 Rxg1+) 36... Qe4 {[%emt 0:00:08] And now ...h4 would win.} 37. Qf1 {[%emt 0:00:34]} h4 {[%emt 0:01:04][%cal Oh3g2] ( -> ...Bxg2+!)} 38. Re2 {[%emt 0:00:52] [#]} Qc6 {[%emt 0:02:07]} (38... Bxg2+ $142 $1 39. Kg1 Bh3+ 40. Kf2 Qf4+ 41. Ke1 Qc1+ 42. Kf2 Rf5+ 43. Kg1 Rxf1#) 39. Kg1 {[%emt 0:00:23]} Bd7 {[%emt 0:04:34] Threatens to win with ...h3.} 40. Qf2 {[%emt 0:00:50]} h3 {[%emt 0:00:44]} 41. g3 {[%emt 0:01:12]} Rf5 {[%emt 0:32:58] Black mates.} 42. Qxa7 {[%emt 0:02:31] [#]} Qh1+ $3 {[%emt 0:01:49][%mdl 512]} 43. Kxh1 {[%emt 0:00:06]} Rf1+ {[%emt 0:00:05] Weighted Error Value: White=0.90/Black=0.51} 0-1